bitfinex-derivatives/quotes_BNBF0:USTF0_20241230
["timestamp","ask_amount","ask_price","bid_price","bid_amount"]
[1735553944446,0.28727377,696.2,695.47,1.07010538]
[1735553945745,0.28727377,696.2,695.28,1.07010538]
[1735553946647,0.28727377,696.2,695.3,1.07010538]
[1735553948042,0.28727377,696.2,695.28,1.07010538]
[1735553949148,0.28727377,696.2,694.38,2.18479848]
[1735553949149,0.28727377,696.2,695.23,1.07010538]
[1735553950748,0.28727377,696.2,695.34,1.07010538]
[1735553951651,0.28727377,696.2,695.31,1.07010538]
[1735553952751,0.28727377,696.2,695.3,1.07010538]
[1735553953851,0.28727377,696.2,695.29,1.07010538]
[1735553956053,0.28727377,696.2,695.27,1.07010538]
[1735553957355,0.28727377,696.2,695.21,1.07010538]
[1735553958356,0.28727377,696.2,694.61,2.18479848]
[1735553958357,0.28727377,696.2,695.2,1.07010538]
[1735553959851,0.28727377,696.2,695.19,1.07010538]
[1735553962955,0.28727377,696.2,694.6,2.18479848]
[1735553962956,0.28727377,696.2,695.17,1.07010538]
[1735553963958,0.28727377,696.2,695.06,1.07010538]
[1735553965062,0.28727377,696.2,695.05,1.07010538]
[1735553965954,0.28727377,696.2,695.06,1.07010538]
[1735553967058,0.28727377,696.2,695.03,1.07010538]
[1735553968165,0.28727377,696.2,695.04,1.07010538]
[1735553969567,0.28727377,696.2,695.02,1.07010538]
[1735553970866,0.28727377,696.2,695.0,1.07010538]
[1735553971861,0.28727377,696.2,695.06,1.07010538]
[1735553972969,0.28727377,696.2,695.13,1.07010538]
[1735553973865,0.28727377,696.2,695.14,1.07010538]
[1735553975768,0.26449949,696.19,695.14,1.07010538]
[1735553975967,0.28728615,696.17,695.14,1.07010538]
[1735553976160,0.28728615,696.17,695.13,1.07010538]
[1735553978365,0.28728615,696.17,695.1,1.07010538]
[1735553979868,0.28728615,696.17,695.13,1.07010538]
[1735553981867,0.28728615,696.17,695.17,1.07010538]
[1735553982870,0.28728615,696.17,694.61,2.18479848]
[1735553982871,0.28728615,696.17,695.2,1.07010538]
[1735553984068,0.28728615,696.17,695.18,1.07010538]
[1735553985169,0.28728615,696.17,695.17,1.07010538]
[1735553986472,0.28728615,696.17,694.55,2.18479848]
[1735553986473,0.28728615,696.17,695.2,1.07010538]
[1735553987373,0.28728615,696.17,695.22,1.07010538]
[1735553988370,0.28728615,696.17,694.59,2.18479848]
[1735553988371,0.28728615,696.17,695.16,1.07010538]
[1735553989673,0.28728615,696.17,695.11,1.07010538]
[1735553990778,0.28728615,696.17,694.26,2.18479848]
[1735553990779,0.28728615,696.17,695.13,1.07010538]
[1735553991678,0.28728615,696.17,695.16,1.07010538]
[1735553992575,0.28728615,696.17,694.32,2.47285009]
[1735553992576,0.28728615,696.17,695.17,1.07010538]
[1735553993579,0.28728615,696.17,694.33,2.8647609]
[1735553993580,0.28728615,696.17,695.13,1.07010538]
[1735553994577,0.28728615,696.17,694.33,0.67996242]
[1735553994578,0.28728615,696.17,695.14,1.07010538]
[1735553995882,0.28728615,696.17,695.15,1.07010538]
[1735553996984,0.28728615,696.17,695.14,1.07010538]
[1735553997981,0.28728615,696.17,695.12,1.07010538]
[1735553998981,0.26450682,696.16,695.12,1.07010538]
[1735553999186,0.26450682,696.16,694.82,1.07010538]
[1735553999187,0.26450682,696.16,695.27,1.07010538]
[1735553999486,0.28729853,696.14,695.27,1.07010538]
[1735554000380,0.28729853,696.14,694.76,1.28412645]
[1735554000381,1.07578463,696.13,695.28,1.07010538]
[1735554000581,0.28731091,696.11,695.28,1.07010538]
[1735554001390,0.28731091,696.11,695.27,1.07010538]
[1735554003587,0.28731091,696.11,695.25,1.07010538]
[1735554004797,0.28731091,696.11,695.23,1.07010538]
[1735554008394,0.28731091,696.11,695.25,1.07010538]
[1735554009196,0.28731091,696.11,695.28,1.07010538]
[1735554010188,0.28731091,696.11,695.33,1.07010538]
[1735554011295,0.28731091,696.11,695.35,1.07010538]
[1735554012491,0.28731091,696.11,695.37,1.07010538]
[1735554013894,0.28731091,696.11,695.36,1.07010538]
[1735554015296,0.28731091,696.11,695.33,1.07010538]
[1735554016093,0.28731091,696.11,695.31,1.07010538]
[1735554018596,0.28731091,696.11,694.62,2.18479848]
[1735554018597,0.28731091,696.11,695.3,1.07010538]
[1735554020202,0.28731091,696.11,695.29,1.07010538]
[1735554022604,0.28731091,696.11,694.94,1.84482024]
[1735554022605,0.28731091,696.11,695.28,1.07010538]
[1735554023805,0.28731091,696.11,695.31,1.07010538]
[1735554025904,0.28731091,696.11,695.27,1.07010538]
[1735554026899,0.28731091,696.11,695.25,1.07010538]
[1735554027900,0.28731091,696.11,695.26,1.07010538]
[1735554029006,0.28731091,696.11,695.24,1.07010538]
[1735554030007,0.28731091,696.11,695.25,1.07010538]
[1735554032208,0.28731091,696.11,695.31,1.07010538]
[1735554033410,0.28731091,696.11,695.32,1.07010538]
[1735554034308,0.28731091,696.11,695.3,1.07010538]
[1735554035510,0.28731091,696.11,695.31,1.07010538]
[1735554036611,0.28731091,696.11,695.32,1.07010538]
[1735554037510,0.28731091,696.11,695.33,1.07010538]
[1735554038707,0.28731091,696.11,695.0,1.84243656]
[1735554038708,0.28731091,696.11,695.34,1.07010538]
[1735554040113,0.28731091,696.11,695.35,1.07010538]
[1735554041415,0.28731091,696.11,695.4,1.07010538]
[1735554043514,0.28731091,696.11,694.38,0.67996242]
[1735554043515,0.28731091,696.11,695.41,1.07010538]
[1735554044514,0.28731091,696.11,695.42,1.07010538]
[1735554045616,0.28731091,696.11,695.43,1.07010538]
[1735554046715,0.28731091,696.11,694.82,2.18479848]
[1735554046716,0.28731091,696.11,695.4,1.07010538]
[1735554047517,0.28731091,696.11,694.76,2.18479848]
[1735554047518,0.28731091,696.11,695.43,1.07010538]
[1735554048618,0.28731091,696.11,695.44,1.07010538]
[1735554049718,0.28731091,696.11,695.47,1.07010538]
[1735554050718,0.28731091,696.11,695.51,1.07010538]
[1735554051617,0.28731091,696.11,695.52,1.07010538]
[1735554053021,0.28731091,696.11,695.5,1.07010538]
[1735554056022,0.28731091,696.11,695.52,1.07010538]
[1735554058120,0.28731091,696.11,695.32,1.07010538]
[1735554058121,0.28731091,696.11,695.53,1.07010538]
[1735554059622,0.28731091,696.11,695.57,1.07010538]
[1735554061624,0.28731091,696.11,695.58,1.07010538]
[1735554063823,0.28731091,696.11,695.6,1.07010538]
[1735554065227,0.28731091,696.11,695.63,1.07010538]
[1735554065419,1.07578463,696.79,695.63,1.07010538]
[1735554065620,0.28703876,696.77,695.63,1.07010538]
[1735554066423,0.28703876,696.77,695.08,1.28412645]
[1735554066424,0.28703876,696.77,695.52,1.07010538]
[1735554067926,0.28703876,696.77,695.57,1.07010538]
[1735554069030,0.28703876,696.77,695.59,1.07010538]
[1735554070329,0.28703876,696.77,694.65,2.18479848]
[1735554070330,0.28703876,696.77,695.55,1.07010538]
[1735554071430,0.28703876,696.77,695.53,1.07010538]
[1735554072425,0.28703876,696.77,695.48,1.07010538]
[1735554073632,0.28703876,696.77,695.5,1.07010538]
[1735554074837,0.28703876,696.77,695.53,1.07010538]
[1735554076137,0.28703876,696.77,695.64,1.07010538]
[1735554077335,0.28703876,696.77,695.62,1.07010538]
[1735554078238,0.28703876,696.77,695.61,1.07010538]
[1735554079440,0.28703876,696.77,695.58,1.07010538]
[1735554080441,0.28703876,696.77,695.49,1.07010538]
[1735554081739,0.28703876,696.77,695.48,1.07010538]
[1735554082743,0.28703876,696.77,695.5,1.07010538]
[1735554084039,0.28703876,696.77,695.59,1.07010538]
[1735554085244,0.28703876,696.77,695.32,1.61669331]
[1735554085245,0.28703876,696.77,695.57,1.07010538]
[1735554086145,0.28703876,696.77,695.58,1.07010538]
[1735554087543,0.28703876,696.77,695.59,1.07010538]
[1735554088947,0.28703876,696.77,695.58,1.07010538]
[1735554090243,0.28703876,696.77,695.6,1.07010538]
[1735554091445,0.28703876,696.77,695.65,1.07010538]
[1735554092753,0.28703876,696.77,695.61,1.07010538]
[1735554094051,0.28703876,696.77,695.64,1.07010538]
[1735554095156,0.28703876,696.77,695.66,1.07010538]
[1735554096355,0.28703876,696.77,695.63,1.07010538]
[1735554097454,0.28703876,696.77,695.73,1.07010538]
[1735554098660,0.28703876,696.77,695.76,1.07010538]
[1735554099658,0.28703876,696.77,695.82,1.07010538]
[1735554101259,0.28703876,696.77,695.86,1.07010538]
[1735554102463,0.28703876,696.77,696.01,1.07010538]
[1735554103868,0.28703876,696.77,696.0,1.07010538]
[1735554105856,0.28703876,696.77,695.8,1.07010538]
[1735554106762,0.28703876,696.77,695.78,1.07010538]
[1735554108058,0.28703876,696.77,695.74,1.07010538]
[1735554108865,0.28703876,696.77,695.65,1.07010538]
[1735554111061,0.28703876,696.77,695.61,1.07010538]
[1735554112373,0.28703876,696.77,695.64,1.07010538]
[1735554114069,0.26430201,696.76,695.64,1.07010538]
[1735554114465,0.26430201,696.76,695.42,1.07010538]
[1735554114466,0.28705112,696.74,695.58,1.07010538]
[1735554115771,0.28705112,696.74,695.57,1.07010538]
[1735554116473,0.28705112,696.74,695.55,1.07010538]
[1735554117571,0.26429909,696.73,695.55,1.07010538]
[1735554118171,0.26429909,696.73,695.57,1.07010538]
[1735554118373,0.28706348,696.71,695.57,1.07010538]
[1735554119274,0.26430577,696.7,695.57,1.07010538]
[1735554119574,0.26430577,696.7,695.59,1.07010538]
[1735554119974,0.28707584,696.68,695.59,1.07010538]
[1735554120774,0.28707584,696.68,695.57,1.07010538]
[1735554121975,0.28707584,696.68,695.39,1.07010538]
[1735554123176,0.26436765,696.67,695.23,1.07010538]
[1735554123476,0.2870882,696.65,695.23,1.07010538]
[1735554123875,0.26436498,696.64,695.23,1.07010538]
[1735554124176,0.28710057,696.62,695.23,1.07010538]
[1735554124477,0.28710057,696.62,693.37,5.39859214]
[1735554124478,0.26436982,696.61,695.33,1.07010538]
[1735554124870,0.28711293,696.59,695.33,1.07010538]
[1735554125074,0.26436982,696.58,695.33,1.07010538]
[1735554125376,0.2871253,696.56,695.29,1.07010538]
[1735554125879,0.26436982,696.55,695.29,1.07010538]
[1735554126077,0.28713766,696.53,695.29,1.07010538]
[1735554126377,0.28713766,696.53,695.26,1.07010538]
[1735554128473,0.28713766,696.53,695.25,1.07010538]
[1735554129076,0.26438401,696.52,695.25,1.07010538]
[1735554129275,0.28713766,696.53,695.25,1.07010538]
[1735554129680,0.28713766,696.53,695.24,1.07010538]
[1735554130580,0.2644093,696.52,695.24,1.07010538]
[1735554130877,0.2644093,696.52,695.14,1.07010538]
[1735554131081,0.28713766,696.53,695.14,1.07010538]
[1735554131781,0.28713766,696.53,694.91,1.35791243]
[1735554132783,0.28713766,696.53,694.91,0.28780705]
[1735554135883,0.26444139,696.52,694.91,0.28780705]
[1735554137483,0.26444139,696.52,694.95,1.07010538]
[1735554138184,0.28715003,696.5,694.98,1.07010538]
[1735554138379,0.26444139,696.49,694.98,1.07010538]
[1735554139185,0.2644501,696.48,694.99,1.07010538]
[1735554139484,0.2644501,696.47,694.99,1.07010538]
[1735554139879,0.28715003,696.5,694.99,1.07010538]
[1735554139880,0.26446142,696.46,694.99,1.07010538]
[1735554140082,0.26446142,696.49,694.99,1.07010538]
[1735554140483,0.26446142,696.49,694.86,1.07010538]
[1735554140681,0.26446142,696.45,694.86,1.07010538]
[1735554140885,0.28717889,696.43,694.86,1.07010538]
[1735554141184,0.26446142,696.42,694.86,1.07010538]
[1735554141382,0.28719126,696.4,694.86,1.07010538]
[1735554141587,0.26448032,696.39,694.86,1.07010538]
[1735554141788,0.26448032,696.39,694.79,1.07010538]
[1735554141789,0.28720364,696.37,694.79,1.07010538]
[1735554142982,0.28720364,696.37,694.41,1.83465875]
[1735554142983,0.28720364,696.37,694.77,1.07010538]
[1735554143981,0.28720364,696.37,694.81,1.07010538]
[1735554144587,0.26446472,696.36,694.81,1.07010538]
[1735554144788,0.28721601,696.34,694.81,1.07010538]
[1735554144987,0.28721601,696.34,694.83,1.07010538]
[1735554145384,0.26446761,696.33,694.83,1.07010538]
[1735554145582,0.28722838,696.31,694.83,1.07010538]
[1735554145985,0.28722838,696.31,694.89,1.07010538]
[1735554146589,0.26444154,696.3,694.89,1.07010538]
[1735554146787,0.28722838,696.31,694.89,1.07010538]
[1735554146987,0.28724076,696.28,694.89,1.07010538]
[1735554147193,0.28724076,696.28,694.95,1.07010538]
[1735554148390,0.28724076,696.28,694.67,3.45493833]
[1735554148391,0.28724076,696.28,695.07,1.07010538]
[1735554150590,0.28724076,696.28,695.06,1.07010538]
[1735554151893,0.28724076,696.28,695.05,1.07010538]
[1735554152798,0.28724076,696.28,694.36,2.18479848]
[1735554152799,0.28724076,696.28,695.01,1.07010538]
[1735554153894,0.28724076,696.28,695.02,1.07010538]
[1735554155193,0.28724076,696.28,695.08,1.07010538]
[1735554155696,0.26449643,696.27,695.08,1.07010538]
[1735554156594,0.26449643,696.27,694.99,1.07010538]
[1735554157199,0.28724076,696.28,694.99,1.07010538]
[1735554158007,0.28724076,696.28,694.67,1.07010538]
[1735554159202,0.28724076,696.28,694.6,1.07010538]
[1735554160103,0.28724076,696.28,694.58,1.07010538]
[1735554162103,0.28724076,696.28,694.56,1.07010538]
[1735554163404,0.28724076,696.28,694.53,1.07010538]
[1735554164404,0.28724076,696.28,694.52,1.07010538]
[1735554165608,0.28724076,696.28,694.55,1.07010538]
[1735554165807,0.26456004,696.27,694.55,1.07010538]
[1735554166609,1.07578463,696.25,694.83,1.07010538]
[1735554166802,0.26456004,696.24,694.83,1.07010538]
[1735554167605,1.07578463,696.25,694.83,1.07010538]
[1735554167806,0.26453123,696.23,694.86,1.07010538]
[1735554168103,0.26453123,696.24,694.86,1.07010538]
[1735554168302,0.26453123,696.22,694.86,1.07010538]
[1735554168507,0.28724076,696.28,694.86,1.07010538]
[1735554169007,0.26450431,696.27,694.86,1.07010538]
[1735554169212,0.26450431,696.27,694.92,1.07010538]
[1735554170212,0.28724076,696.28,694.92,1.07010538]
[1735554170414,0.26450468,696.26,694.93,1.07010538]
[1735554170615,0.28724076,696.28,694.93,1.07010538]
[1735554170914,0.26450041,696.27,694.93,1.07010538]
[1735554171519,0.28725314,696.25,694.96,1.07010538]
[1735554171716,0.26450041,696.24,694.96,1.07010538]
[1735554171916,0.28726551,696.22,694.96,1.07010538]
[1735554172719,0.28726551,696.22,694.95,1.07010538]
[1735554173414,0.28726551,696.22,694.97,1.07010538]
[1735554175816,0.28726551,696.22,694.32,2.18479848]
[1735554175817,0.28726551,696.22,694.99,1.07010538]
[1735554176720,0.26450134,696.21,694.99,1.07010538]
[1735554177021,0.26450134,696.21,694.98,1.07010538]
[1735554177022,0.28727789,696.19,694.98,1.07010538]
[1735554177224,0.26450134,696.18,694.98,1.07010538]
[1735554177626,0.28729027,696.16,694.98,1.07010538]
[1735554177819,0.26450212,696.15,694.98,1.07010538]
[1735554178122,0.28729027,696.16,695.06,1.07010538]
[1735554178322,0.26450272,696.15,695.06,1.07010538]
[1735554178526,0.28729853,696.14,695.06,1.07010538]
[1735554179325,0.28729853,696.14,695.08,1.07010538]
[1735554180524,0.28729853,696.14,694.99,1.07010538]
[1735554181828,0.28729853,696.14,695.01,1.07010538]
[1735554183121,0.28729853,696.14,695.08,1.07010538]
[1735554184622,1.07578463,696.74,695.08,1.07010538]
[1735554184823,1.07578463,696.85,695.08,1.07010538]
[1735554185727,1.07578463,696.85,694.79,3.45753464]
[1735554185728,1.07578463,696.85,695.94,1.07010538]
[1735554185927,1.07578463,698.04,695.94,1.07010538]
[1735554186123,0.26394565,698.03,695.94,1.07010538]
[1735554187128,0.26394565,698.03,695.6,1.07010538]
[1735554187629,1.07578463,699.15,695.6,1.07010538]
[1735554188030,0.26386271,699.14,695.6,1.07010538]
[1735554188531,0.26386271,699.14,652.0,35.1738452]
[1735554188532,0.26386271,699.13,695.52,1.07010538]
[1735554188734,0.26386271,699.12,695.52,1.07010538]
[1735554188933,0.26386271,699.11,695.52,1.07010538]
[1735554189126,0.26386271,699.1,695.52,1.07010538]
[1735554189330,0.26386271,699.09,695.52,1.07010538]
[1735554189527,0.26386271,699.09,690.9,1.36187811]
[1735554189528,0.26386271,699.08,695.25,1.07010538]
[1735554189726,0.26386271,699.07,695.25,1.07010538]
[1735554189928,0.26386271,699.06,695.25,1.07010538]
[1735554190124,0.26386271,699.05,695.39,0.28760839]
[1735554190329,0.28617625,698.87,695.39,0.28760839]
[1735554190528,0.26386271,698.86,695.39,0.28760839]
[1735554190831,0.28617625,698.87,695.39,0.28760839]
[1735554190832,0.26386271,698.85,695.39,0.28760839]
[1735554191130,0.26386271,698.84,695.39,0.28760839]
[1735554191325,0.28617625,698.87,695.39,0.28760839]
[1735554191326,0.26386271,698.83,695.39,0.28760839]
[1735554191526,0.28626227,698.66,695.39,0.28760839]
[1735554191729,0.26386271,698.65,695.39,0.28760839]
[1735554192233,0.28633194,698.49,695.39,0.28760839]
[1735554194331,0.26381577,698.48,695.39,0.28760839]
[1735554194530,0.28639754,698.33,695.39,0.28760839]
[1735554194728,0.26381577,698.32,695.39,0.28760839]
[1735554194929,0.28645907,698.18,695.39,0.28760839]
[1735554196630,0.26382997,698.17,695.39,0.28760839]
[1735554198130,0.28645907,698.18,695.39,0.28760839]
[1735554198326,0.26385446,698.17,695.39,0.28760839]
[1735554198730,0.28650421,698.07,695.39,0.28760839]
[1735554198929,0.26385446,698.06,695.39,0.28760839]
[1735554199332,0.28651653,698.04,695.39,0.28760839]
[1735554199529,0.26385649,698.03,695.39,0.28760839]
[1735554199731,0.28652884,698.01,695.39,0.28760839]
[1735554202536,0.26386322,698.0,695.39,0.28760839]
[1735554202727,0.28654116,697.98,695.39,0.28760839]
[1735554207440,0.26385828,697.97,695.39,0.28760839]
[1735554207734,0.28655347,697.95,695.39,0.28760839]
[1735554207939,0.26385828,697.94,695.39,0.28760839]
[1735554208138,0.28656579,697.92,695.39,0.28760839]
[1735554208832,0.26385977,697.91,695.39,0.28760839]
[1735554209039,0.28657811,697.89,695.39,0.28760839]
[1735554209342,0.26385379,697.88,695.39,0.28760839]
[1735554209636,0.28659043,697.86,695.39,0.28760839]
[1735554209838,0.26385379,697.85,695.39,0.28760839]
[1735554210037,0.28659864,697.84,695.39,0.28760839]
[1735554210242,0.26385379,697.83,695.39,0.28760839]
[1735554210542,0.28660686,697.82,695.39,0.28760839]
[1735554210739,0.26385379,697.81,695.39,0.28760839]
[1735554210945,0.28661507,697.8,695.39,0.28760839]
[1735554211145,0.26385379,697.79,695.39,0.28760839]
[1735554211345,0.28662329,697.78,695.39,0.28760839]
[1735554211648,0.26385362,697.77,695.39,0.28760839]
[1735554211849,0.28663561,697.75,695.39,0.28760839]
[1735554213444,0.26391628,697.74,695.39,0.28760839]
[1735554213953,0.28664793,697.72,695.39,0.28760839]
[1735554214147,0.26393452,697.71,695.39,0.28760839]
[1735554214347,0.28666026,697.69,695.39,0.28760839]
[1735554214650,0.26393452,697.68,695.39,0.28760839]
[1735554214851,0.28667259,697.66,695.39,0.28760839]
[1735554215050,0.26393452,697.65,695.39,0.28760839]
[1735554215251,0.28667259,697.66,695.39,0.28760839]
[1735554215546,0.28667259,697.66,695.51,1.07010538]
[1735554215952,0.28667259,697.66,695.61,0.28751743]
[1735554218654,0.28667259,697.66,695.76,1.07010538]
[1735554218852,0.28667259,697.66,695.78,0.28744718]
[1735554219252,0.28667259,697.66,696.02,1.07010538]
[1735554219648,0.28667259,697.66,696.03,0.28734393]
[1735554220246,0.28667259,697.66,696.6,1.07010538]
[1735554220451,0.26389699,697.65,696.6,1.07010538]
[1735554220652,0.2866808,697.64,696.6,1.07010538]
[1735554220851,0.26389699,697.63,696.6,1.07010538]
[1735554221047,0.28668902,697.62,696.6,1.07010538]
[1735554221249,0.28668902,697.62,696.83,1.07010538]
[1735554221457,0.26394137,697.61,696.83,1.07010538]
[1735554221657,0.28669724,697.6,696.83,1.07010538]
[1735554222355,0.28669724,697.6,696.66,1.07010538]
[1735554223355,0.28669724,697.6,696.68,1.07010538]
[1735554225051,0.28669724,697.6,696.61,1.07010538]
[1735554226361,0.28669724,697.6,696.58,1.07010538]
[1735554227560,0.28669724,697.6,696.04,0.70179568]
[1735554227561,0.28669724,697.6,696.66,1.07010538]
[1735554228955,0.28669724,697.6,696.65,1.07010538]
[1735554230159,0.28669724,697.6,696.63,1.07010538]
[1735554231560,0.28669724,697.6,696.69,1.07010538]
[1735554232562,0.28669724,697.6,696.04,0.70179568]
[1735554232563,0.28669724,697.6,696.7,1.07010538]
[1735554233762,0.28669724,697.6,696.76,1.07010538]
[1735554234767,0.28669724,697.6,696.79,1.07010538]
[1735554235867,0.28669724,697.6,696.82,1.07010538]
[1735554236568,0.28669724,697.6,696.84,1.07010538]
[1735554237667,0.28669724,697.6,696.86,1.07010538]
[1735554238770,0.28669724,697.6,696.87,1.07010538]
[1735554239970,0.28669724,697.6,696.9,1.07010538]
[1735554241274,0.28669724,697.6,696.76,1.07010538]
[1735554242378,0.28669724,697.6,696.7,1.07010538]
[1735554243378,0.28669724,697.6,696.65,1.07010538]
[1735554244474,0.28669724,697.6,696.69,1.07010538]
[1735554246079,0.28669724,697.6,696.75,1.07010538]
[1735554246873,0.28669724,697.6,696.5,1.07010538]
[1735554248372,0.28669724,697.6,696.55,1.07010538]
[1735554249679,0.28669724,697.6,696.46,1.07010538]
[1735554251079,0.28669724,697.6,696.45,1.07010538]
[1735554252076,0.28669724,697.6,696.36,1.07010538]
[1735554253080,0.28669724,697.6,696.33,1.07010538]
[1735554254184,0.28669724,697.6,696.31,1.07010538]
[1735554255177,0.28669724,697.6,696.03,0.28734393]
[1735554255178,0.28669724,697.6,696.29,1.07010538]
[1735554256483,0.28669724,697.6,696.24,1.07010538]
[1735554257980,0.28669724,697.6,696.2,1.07010538]
[1735554259183,0.28669724,697.6,696.16,1.07010538]
[1735554260279,0.28669724,697.6,696.11,1.07010538]
[1735554261285,0.28669724,697.6,696.03,0.28734393]
[1735554266693,0.26406074,697.59,696.03,0.28734393]
[1735554266887,0.28670957,697.57,696.03,0.28734393]
[1735554267191,0.26404488,697.56,696.03,0.28734393]
[1735554267390,0.2867219,697.54,696.03,0.28734393]
[1735554269892,0.26404999,697.53,696.03,0.28734393]
[1735554270089,0.28673424,697.51,696.03,0.28734393]
[1735554270291,0.26404999,697.5,696.03,0.28734393]
[1735554270492,0.28674657,697.48,696.03,0.28734393]
[1735554270692,0.26404999,697.47,696.03,0.28734393]
[1735554270889,0.28674657,697.48,696.03,0.28734393]
[1735554270890,0.2867589,697.45,696.03,0.28734393]
[1735554271894,0.26409368,697.44,695.87,1.07010538]
[1735554272195,0.28677124,697.42,695.87,1.07010538]
[1735554272689,0.28677124,697.42,695.72,1.07010538]
[1735554273196,0.28677124,697.42,695.72,1.35757735]
[1735554273988,0.28677124,697.42,695.8,1.07010538]
[1735554274293,0.28677124,697.42,695.81,0.28743478]
[1735554275487,0.28677124,697.42,695.88,1.07010538]
[1735554276390,0.28677124,697.42,695.87,1.07010538]
[1735554278992,0.28677124,697.42,695.91,1.07010538]
[1735554279395,0.26407014,697.41,695.91,1.07010538]
[1735554279591,0.28678357,697.39,695.91,1.07010538]
[1735554279798,0.26407014,697.38,695.91,1.07010538]
[1735554280097,0.28679591,697.36,696.07,1.07010538]
[1735554280397,0.26407014,697.35,696.07,1.07010538]
[1735554280597,0.28680825,697.33,696.07,1.07010538]
[1735554280791,0.26407014,697.32,696.07,1.07010538]
[1735554280995,0.28681648,697.31,696.07,1.07010538]
[1735554281192,0.26407371,697.3,696.07,1.07010538]
[1735554281390,0.28681648,697.31,696.07,1.07010538]
[1735554281591,0.2868247,697.29,696.07,1.07010538]
[1735554282396,0.2868247,697.29,696.04,1.07010538]
[1735554283191,0.2868247,697.29,696.11,1.07010538]
[1735554284198,0.2868247,697.29,696.12,1.07010538]
[1735554285296,0.2868247,697.29,696.15,1.07010538]
[1735554286295,0.2868247,697.29,696.17,1.07010538]
[1735554288399,0.2868247,697.29,696.2,1.07010538]
[1735554289305,0.2868247,697.29,696.21,1.07010538]
[1735554290202,0.2868247,697.29,696.26,1.07010538]
[1735554290909,0.2868247,697.29,696.28,1.07010538]
[1735554292107,0.2868247,697.29,695.82,0.70196134]
[1735554292108,0.2868247,697.29,696.31,1.07010538]
[1735554292702,0.26409868,697.28,696.31,1.07010538]
[1735554292901,0.28683704,697.26,696.31,1.07010538]
[1735554293104,0.26409868,697.25,696.31,1.07010538]
[1735554293306,0.28684938,697.23,696.27,1.07010538]
[1735554294313,0.28684938,697.23,696.26,1.07010538]
[1735554294910,0.26426093,697.22,696.26,1.07010538]
[1735554295109,0.28686173,697.2,696.26,1.07010538]
[1735554295303,0.26426481,697.19,696.26,1.07010538]
[1735554295708,0.26426481,697.19,695.74,1.07010538]
[1735554295910,0.28687407,697.17,695.74,1.07010538]
[1735554296211,0.26426481,697.16,695.74,1.07010538]
[1735554297308,0.28687407,697.17,695.5,1.07010538]
[1735554297511,0.26427924,697.16,695.5,1.07010538]
[1735554297905,0.28688642,697.14,695.5,1.07010538]
[1735554298110,0.26427924,697.13,695.37,1.07010538]
[1735554299216,0.26427924,697.13,695.31,1.07010538]
[1735554300417,0.26427924,697.13,695.27,1.07010538]
[1735554301712,0.26428033,697.12,695.31,1.07010538]
[1735554302011,0.28688642,697.14,695.31,1.07010538]
[1735554302012,0.26428033,697.11,695.31,1.07010538]
[1735554302216,0.28690699,697.09,695.31,1.07010538]
[1735554302416,0.26428479,697.08,695.31,1.07010538]
[1735554302615,0.28691934,697.06,695.31,1.07010538]
[1735554302813,0.26428479,697.05,695.26,1.07010538]
[1735554303218,0.26428479,697.04,695.26,1.07010538]
[1735554303417,0.26428479,697.03,695.26,1.07010538]
[1735554303612,0.26428479,697.02,695.26,1.07010538]
[1735554303818,0.26428479,697.01,695.26,1.07010538]
[1735554304122,0.26428479,697.0,695.2,1.07010538]
[1735554304421,0.28691934,697.06,695.2,1.07010538]
[1735554304422,0.28695227,696.98,695.2,1.07010538]
[1735554304619,0.26434226,696.97,695.2,1.07010538]
[1735554305216,0.26434226,696.97,695.08,1.07010538]
[1735554306216,0.26434226,696.97,695.1,1.07010538]
[1735554306217,0.28696463,696.95,695.1,1.07010538]
[1735554306415,0.26434226,696.94,695.1,1.07010538]
[1735554306823,0.28697698,696.92,695.1,1.07010538]
[1735554307024,0.26434226,696.91,695.1,1.07010538]
[1735554307224,0.26434226,696.91,695.11,0.28772424]
[1735554307824,0.28698933,696.89,695.11,0.28772424]
[1735554308024,0.26434226,696.88,695.11,0.28772424]
[1735554308520,0.28700169,696.86,695.11,0.28772424]
[1735554309019,0.26434226,696.85,695.11,0.28772424]
[1735554309422,0.28701404,696.83,695.11,0.28772424]
[1735554311825,0.2642949,696.82,695.11,0.28772424]
[1735554312027,0.28701404,696.83,695.11,0.28772424]
[1735554312226,0.26429948,696.82,695.11,0.28772424]
[1735554312527,0.28701404,696.83,695.11,0.28772424]
[1735554312724,0.2870264,696.8,695.11,0.28772424]
[1735554317929,0.26428918,696.79,695.11,0.28772424]
[1735554318331,0.28703464,696.78,695.11,1.35782962]
[1735554319224,0.28703464,696.78,695.11,0.28772424]
[1735554331733,0.26445958,696.77,695.11,0.28772424]
[1735554331935,0.28703464,696.78,695.11,0.28772424]
[1735554332336,0.26445881,696.77,695.11,0.28772424]
[1735554333536,0.26445256,696.76,695.11,0.28772424]
[1735554333733,0.26445256,696.75,695.11,0.28772424]
[1735554334040,0.26445256,696.74,695.11,0.28772424]
[1735554334335,0.26445256,696.77,695.11,0.28772424]
[1735554334542,0.26445256,696.76,694.8,1.07010538]
[1735554334740,0.26445256,696.77,694.8,1.07010538]
[1735554334942,0.26445256,696.76,694.99,1.07010538]
[1735554335137,0.26445256,696.77,694.99,1.07010538]
[1735554335341,0.26445256,696.76,694.99,1.07010538]